bitfinex-derivatives/quotes_ETHF0:USTF0_20250602
["timestamp","ask_amount","ask_price","bid_price","bid_amount"]
[1748852450634,3.2078,2507.5,2507.4,40.80598444]
[1748852450843,18.45,2507.5,2507.4,40.80598444]
[1748852451246,18.45,2507.5,2507.4,42.0195654]
[1748852451745,18.92837,2507.5,2507.4,42.0195654]
[1748852451947,18.92837,2507.5,2507.4,40.80598444]
[1748852457151,18.438,2507.5,2507.4,40.80598444]
[1748852458247,18.438,2507.5,2507.4,42.12448444]
[1748852458744,18.91637,2507.5,2507.4,42.12448444]
[1748852459644,18.91637,2507.5,2507.4,40.80598444]
[1748852460346,18.90437,2507.5,2507.4,40.80598444]
[1748852460546,4.4764,2507.8,2507.4,40.80598444]
[1748852460752,4.01,2507.7,2507.5,1.3451]
[1748852460950,3.2078,2507.8,2507.7,0.47833]
[1748852461139,22.13211,2507.8,2507.7,1.21433818]
[1748852461544,22.13211,2507.8,2507.5,2.0109]
[1748852461746,0.47833,2507.7,2507.6,1.21444067]
[1748852463545,0.47837,2507.5,2507.4,40.80598444]
[1748852463853,0.47837,2507.5,2507.4,43.34713894]
[1748852464050,0.47837,2507.5,2507.4,42.13288444]
[1748852464842,7.69617,2507.5,2507.4,40.80598444]
[1748852465952,4.48837,2507.5,2507.4,40.80598444]
[1748852467754,4.01,2507.5,2507.4,40.80598444]
[1748852468450,22.451,2507.5,2507.4,42.02250653]
[1748852468648,22.464,2507.5,2507.4,42.02250653]
[1748852470154,23.14147,2507.5,2507.4,40.80598444]
[1748852470349,26.34927,2507.5,2507.4,42.02332106]
[1748852470549,26.34927,2507.5,2507.4,40.80598444]
[1748852470859,26.35727,2507.5,2507.4,0.00598444]
[1748852471557,26.37127,2507.5,2507.4,0.00598444]
[1748852472055,26.37127,2507.5,2507.4,40.80598444]
[1748852473257,31.37127,2507.5,2507.4,40.80598444]
[1748852473454,0.4784,2507.3,2507.2,1.18925746]
[1748852473949,5.4784,2507.3,2507.2,1.18925746]
[1748852474155,6.7989,2507.3,2507.2,1.18925746]
[1748852474559,6.7989,2507.3,2507.2,0.34117746]
[1748852474755,6.7989,2507.3,2507.2,7.46e-06]
[1748852476062,7.4478,2507.3,2507.2,7.46e-06]
[1748852477158,0.47844,2507.1,2507.0,1.9e-06]
[1748852477356,26.17324,2507.1,2507.0,1.9e-06]
[1748852477556,31.17324,2507.1,2507.0,1.9e-06]
[1748852478357,26.17324,2507.1,2507.0,1.9e-06]
[1748852481056,0.47858,2506.4,2506.3,3.39e-06]
[1748852481252,26.16438,2506.4,2506.3,3.39e-06]
[1748852481459,26.16438,2506.4,2506.3,40.80000339]
[1748852483961,27.55148,2506.4,2506.3,40.80000339]
[1748852484964,0.47861,2506.2,2506.1,0.00598444]
[1748852485367,0.47871,2505.7,2505.6,1.312]
[1748852485673,26.17751,2505.7,2505.6,40.8]
[1748852487373,7.70451,2505.7,2505.6,40.8]
[1748852487670,27.50391,2505.7,2505.6,40.8]
[1748852488777,0.47875,2505.5,2505.4,0.00402563]
[1748852489159,0.47875,2505.5,2505.4,40.80402563]
[1748852489569,22.96975,2505.5,2505.4,40.80402563]
[1748852491172,22.99375,2505.5,2505.4,40.80402563]
[1748852491770,22.98975,2505.5,2505.4,40.80402563]
[1748852492677,0.47873,2505.6,2505.4,40.80402563]
[1748852492870,43.4318,2506.0,2505.5,1.3419]
[1748852493177,22.523,2505.9,2505.5,1.3419]
[1748852493364,0.47871,2505.7,2505.6,0.638]
[1748852493874,0.47875,2505.5,2505.4,40.80402563]
[1748852494076,23.00575,2505.5,2505.4,40.80402563]
[1748852494573,23.00575,2505.5,2505.4,40.87472352]
[1748852495174,0.47888,2504.8,2504.7,1.58033041]
[1748852495380,18.99988,2504.8,2504.7,1.9857]
[1748852495572,3.2078,2505.0,2504.7,6.9857]
[1748852495764,18.7315,2504.9,2504.8,42.1262]
[1748852496169,18.7315,2504.9,2504.8,48.33597319]
[1748852496370,19.21036,2504.9,2504.8,48.33597319]
[1748852496675,18.7315,2504.9,2504.8,48.33597319]
[1748852497074,19.21036,2504.9,2504.8,48.33597319]
[1748852497573,18.7315,2504.9,2504.8,48.33597319]
[1748852497874,18.7275,2504.9,2504.8,48.33597319]
[1748852498076,18.7275,2504.9,2504.8,48.81485319]
[1748852498277,0.00598444,2505.1,2505.0,0.47884]
[1748852498481,0.00598444,2505.1,2505.0,4.89641319]
[1748852498680,0.00598444,2505.1,2505.0,9.89641319]
[1748852498879,18.54498444,2505.1,2505.0,11.20041319]
[1748852499577,3.2078,2505.9,2505.0,10.72157319]
[1748852499885,0.47876,2505.5,2505.4,0.07069789]
[1748852500084,0.47876,2505.5,2505.4,2.58447108]
[1748852500383,0.47876,2505.5,2505.4,7.58571886]
[1748852500675,17.4812,2505.5,2505.4,8.06447886]
[1748852500880,17.4812,2505.5,2505.4,7.58571886]
[1748852501078,0.00598444,2505.7,2505.5,0.47874]
[1748852501274,0.00598444,2505.7,2505.6,2.59352097]
[1748852501582,19.01569444,2505.7,2505.6,3.29342097]
[1748852501780,18.53698444,2505.7,2505.6,44.09342097]
[1748852501977,0.00598444,2505.7,2505.6,44.57215097]
[1748852502283,18.53398444,2505.7,2505.6,44.57215097]
[1748852502593,18.53098444,2505.7,2505.6,49.57215097]
[1748852502768,18.53098444,2505.7,2505.6,49.09342097]
[1748852503174,18.53098444,2505.7,2505.6,50.67375138]
[1748852503782,18.53098444,2505.7,2505.6,51.15248138]
[1748852504480,18.53098444,2505.7,2505.6,49.94146041]
[1748852504682,18.53098444,2505.7,2505.6,51.15464075]
[1748852504880,0.00598444,2505.7,2505.6,55.05664075]
[1748852505083,0.00598444,2505.7,2505.6,58.26444075]
[1748852506180,0.00598444,2505.7,2505.6,56.68411034]
[1748852506787,0.00598444,2505.7,2505.6,53.26772168]
[1748852508789,0.00598444,2505.7,2505.6,49.3671165]
[1748852509285,0.00598444,2505.7,2505.6,48.8883865]
[1748852509584,0.00598444,2505.7,2505.6,49.3671165]
[1748852510179,0.00598444,2505.7,2505.6,47.78350516]
[1748852510887,0.00598444,2505.7,2505.6,47.85420305]
[1748852511287,0.00598444,2505.7,2505.6,47.37547305]
[1748852511586,0.00598444,2505.7,2505.6,47.85420305]
[1748852511888,0.00598444,2505.7,2505.6,49.44107094]
[1748852512078,0.00598444,2505.7,2505.6,47.85420305]
[1748852512277,0.48469444,2505.7,2505.6,47.37547305]
[1748852512475,0.00598444,2505.7,2505.6,49.44136419]
[1748852512678,0.48469444,2505.7,2505.6,49.44136419]
[1748852513285,0.00598444,2505.7,2505.6,49.44136419]
[1748852513486,0.48469444,2505.7,2505.6,48.96263419]
[1748852514083,0.48469444,2505.7,2505.6,47.37547305]
[1748852514285,0.00598444,2505.7,2505.6,47.37547305]
[1748852514679,0.48469444,2505.7,2505.6,47.37547305]
[1748852515087,0.48469444,2505.7,2505.6,45.29307305]
[1748852515289,2.49409444,2505.7,2505.6,45.29307305]
[1748852515487,2.49409444,2505.7,2505.6,42.08527305]
[1748852516289,2.01538444,2505.7,2505.6,42.08527305]
[1748852517490,2.01538444,2505.7,2505.6,42.56400305]
[1748852517696,0.68638444,2505.7,2505.6,42.56661781]
[1748852518088,0.68638444,2505.7,2505.6,43.87021781]
[1748852518495,0.00598444,2505.7,2505.6,43.87021781]
[1748852518696,18.48998444,2505.7,2505.6,43.87021781]
[1748852519493,0.00598444,2505.7,2505.6,43.39148781]
[1748852519696,18.48598444,2505.7,2505.6,43.87021781]
[1748852519896,18.48598444,2505.7,2505.6,43.39148781]
[1748852520191,0.00598444,2505.7,2505.6,48.66517895]
[1748852520391,18.49398444,2505.7,2505.6,52.07801781]
[1748852520592,18.49,2505.9,2505.8,0.47868]
[1748852520892,18.491,2506.1,2505.9,0.47866]
[1748852521197,3.2078,2506.6,2506.0,8.12721396]
[1748852521399,18.492,2506.5,2506.2,1.5868788]
[1748852521585,18.492,2506.5,2506.3,2.53818126]
[1748852521784,18.97057,2506.5,2506.4,1.21668126]
[1748852522001,18.97057,2506.5,2506.4,43.33818126]
[1748852522496,18.97057,2506.5,2506.4,44.01618126]
[1748852523495,18.96257,2506.5,2506.4,44.01618126]
[1748852523694,0.00598444,2506.6,2506.4,44.01618126]
[1748852523899,0.00598444,2506.6,2506.5,1.69524126]
[1748852524093,0.00598444,2506.6,2506.5,2.61348126]
[1748852524094,18.48598444,2506.6,2506.5,2.61348126]
[1748852524287,0.00598444,2506.6,2506.5,3.09204126]
[1748852524490,18.48498444,2506.6,2506.5,2.61158752]
[1748852525696,18.96352444,2506.6,2506.5,2.61158752]
[1748852526103,18.96352444,2506.6,2506.5,1.21478752]
[1748852526499,18.48498444,2506.6,2506.5,1.21478752]
[1748852526689,18.48498444,2506.6,2506.5,3.03554752]
[1748852526896,18.48498444,2506.6,2506.5,2.55698752]
[1748852527196,18.48498444,2506.6,2506.5,3.03554752]
[1748852527399,18.47398444,2506.6,2506.5,3.03554752]
[1748852527700,18.95252444,2506.6,2506.5,2.55698752]
[1748852528803,18.95252444,2506.6,2506.5,2.55699484]
[1748852529198,18.95252444,2506.6,2506.5,1.21479484]
[1748852529494,0.47856,2506.5,2506.4,40.8]
[1748852529801,24.24796,2506.5,2506.4,42.01518787]
[1748852531395,23.7694,2506.5,2506.4,42.01518787]
[1748852531606,3.21378444,2506.6,2506.4,42.49375787]
[1748852531900,3.21378444,2506.6,2506.5,2.60958787]
[1748852532094,21.69178444,2506.6,2506.5,2.60958787]
[1748852532611,0.00598444,2506.6,2506.5,3.08814787]
[1748852532899,18.48098444,2506.6,2506.5,3.08814787]
[1748852533102,0.00598444,2506.6,2506.5,3.08758868]
[1748852533399,18.48198444,2506.6,2506.5,2.60902868]
[1748852533900,18.96052444,2506.6,2506.5,2.60902868]
[1748852534101,18.48198444,2506.6,2506.5,1.21462868]
[1748852534293,18.47698444,2506.6,2506.5,3.06968868]
[1748852534893,0.00598444,2506.6,2506.5,3.06968868]
[1748852535098,18.47698444,2506.6,2506.5,3.06968868]
[1748852535599,18.47698444,2506.6,2506.5,4.65656748]
[1748852535803,18.47198444,2506.6,2506.5,4.65656748]
[1748852536492,18.46998444,2506.6,2506.5,4.65656748]
[1748852537200,18.46998444,2506.6,2506.5,4.17800748]
[1748852537398,18.46998444,2506.6,2506.5,2.9633788]
[1748852537599,18.46998444,2506.6,2506.5,4.65582649]
[1748852538202,0.00598444,2506.6,2506.5,4.65582649]
[1748852538403,3.68623,2507.2,2506.5,13.8727059]
[1748852538598,18.458,2506.9,2506.8,1.66591071]
[1748852538798,18.458,2506.9,2506.8,45.18826769]
[1748852539302,0.00598444,2507.1,2506.8,44.70978769]
[1748852539607,18.458,2507.0,2506.9,2.88026374]
[1748852539803,18.457,2507.0,2506.9,4.21906374]
[1748852540111,0.00598444,2507.1,2507.0,0.47846]
[1748852540309,18.46198444,2507.1,2507.0,3.03114769]
[1748852540510,18.94042444,2507.1,2507.0,2.55268769]
[1748852540710,18.46198444,2507.1,2507.0,1.21388769]
[1748852541005,18.94042444,2507.1,2507.0,2.50978769]
[1748852541596,18.94042444,2507.1,2507.0,2.98824769]
[1748852541800,18.94042444,2507.1,2507.0,2.98792452]
[1748852542503,18.46198444,2507.1,2507.0,2.98792452]
[1748852543809,18.94042444,2507.1,2507.0,2.50946452]
[1748852544207,18.46198444,2507.1,2507.0,2.98792452]
[1748852544909,18.94042444,2507.1,2507.0,1.21356452]
[1748852546112,18.94042444,2507.1,2507.0,1.21466468]
[1748852547209,20.33822444,2507.1,2507.0,1.21466468]
[1748852547615,0.47848,2506.9,2506.8,40.8]
[1748852547809,3.68628,2506.9,2506.8,42.01636473]
[1748852548212,5.08408,2506.9,2506.8,42.01636473]
[1748852548413,10.08408,2506.9,2506.8,42.01636473]
[1748852548916,5.08408,2506.9,2506.8,42.01636473]
[1748852549415,27.51908,2506.9,2506.8,42.01636473]
[1748852550414,27.51908,2506.9,2506.8,42.01841418]
[1748852550712,27.51508,2506.9,2506.8,42.01841418]
[1748852551208,27.0366,2506.9,2506.8,42.01841418]
[1748852551407,19.8308,2506.9,2506.8,42.01841418]
[1748852551714,19.8308,2506.9,2506.8,43.21070125]
[1748852551907,18.431,2506.9,2506.8,43.21070125]
[1748852553612,19.8157,2506.9,2506.8,43.21070125]
[1748852553815,19.8157,2506.9,2506.8,42.01841418]
[1748852554011,1.86318,2506.9,2506.8,42.01841418]
[1748852554210,20.28618,2506.9,2506.8,42.01841418]
[1748852554811,20.28618,2506.9,2506.8,43.20858487]
[1748852555312,20.28618,2506.9,2506.8,42.01598584]
[1748852555508,20.28618,2506.9,2506.8,43.66992468]
[1748852557411,0.00598444,2507.1,2507.0,0.47846]
[1748852557612,18.43298444,2507.1,2507.0,4.0786661]
[1748852558217,0.00598444,2507.1,2507.0,4.7139661]
[1748852558405,0.00598444,2507.1,2507.0,6.6791661]
[1748852558607,18.42998444,2507.1,2507.0,4.29494584]
[1748852558802,0.00598444,2507.1,2507.0,7.46289624]
[1748852559009,0.00598444,2507.1,2507.0,6.2469104]
[1748852559209,0.00598444,2507.1,2507.0,7.49357807]
[1748852559405,0.48442444,2507.1,2507.0,3.84716767]
[1748852559608,0.00598444,2507.1,2507.0,4.32562767]
[1748852560117,0.48442444,2507.1,2507.0,3.84716767]
[1748852560321,0.48442444,2507.1,2507.0,3.19956767]
[1748852561217,0.48442444,2507.1,2507.0,3.62992119]
[1748852561411,2.42362444,2507.1,2507.0,1.24666767]
[1748852561611,2.42362444,2507.1,2507.0,2.83617185]
[1748852562914,10.94018444,2507.1,2506.9,0.5617208]
[1748852563115,0.47848,2506.9,2506.8,1.26350971]
[1748852563315,0.47852,2506.7,2506.6,0.00598444]
[1748852563515,22.91252,2506.7,2506.6,0.00598444]
[1748852563715,27.91252,2506.7,2506.6,0.00598444]
[1748852564123,0.47859,2506.3,2506.2,40.8]
[1748852564322,22.43,2506.3,2506.2,40.8]
[1748852564517,3.68638,2506.4,2506.2,40.8]
[1748852564718,23.7932,2506.3,2506.2,40.8]
[1748852566723,22.439,2506.3,2506.2,40.8]
[1748852567124,22.91759,2506.3,2506.2,40.8]
[1748852567322,22.439,2506.3,2506.2,40.8]
[1748852567728,18.44,2506.3,2506.2,42.105]
[1748852568625,3.2078,2506.4,2506.2,42.105]
[1748852568821,3.2078,2506.4,2506.3,1.3107]
[1748852569019,21.6478,2506.4,2506.3,1.3107]
[1748852569524,18.446,2506.4,2506.3,1.3107]
[1748852569927,18.92458,2506.4,2506.3,1.3107]
[1748852570625,18.92458,2506.4,2506.2,41.50799789]
[1748852570827,18.92458,2506.4,2506.2,42.81869789]
[1748852572130,0.47859,2506.3,2506.2,41.50799789]
[1748852572324,18.446,2506.4,2506.2,41.50799789]
[1748852572516,18.92458,2506.4,2506.2,42.89409789]
[1748852573328,4.6623,2506.6,2506.2,42.89409789]
[1748852573525,18.44,2506.5,2506.3,1.86469]
[1748852574228,18.44,2506.5,2506.3,1.3861]
[1748852574430,18.44,2506.5,2506.3,1.86468]
[1748852575025,18.91856,2506.5,2506.4,1.21774737]
[1748852575926,19.11766,2506.5,2506.4,1.21774737]
[1748852576432,19.11766,2506.5,2506.4,1.21796486]
[1748852576929,18.6391,2506.5,2506.4,1.21796486]
[1748852577321,19.11764,2506.5,2506.4,1.21796486]
[1748852577528,20.41844,2506.5,2506.4,1.21796486]
[1748852578125,1.4999,2506.5,2506.4,1.21796486]
[1748852578333,23.60824,2506.5,2506.4,1.21796486]
[1748852578536,19.9219,2506.5,2506.4,1.21796486]
[1748852578726,18.6211,2506.5,2506.4,1.21796486]
[1748852579827,18.6211,2506.5,2506.4,2.60326486]
[1748852580530,0.1991,2506.5,2506.4,2.60282589]
[1748852580834,18.6191,2506.5,2506.4,2.60282589]
[1748852581234,0.1991,2506.5,2506.4,2.60282589]
[1748852581434,0.1991,2506.5,2506.4,3.08138589]
[1748852581934,0.1991,2506.5,2506.4,5.46463941]
[1748852582935,3.992,2506.9,2506.8,0.47848]
[1748852583133,3.992,2506.9,2506.8,1.21752589]
[1748852583134,22.89046,2506.9,2506.8,1.21752589]
[1748852583333,22.412,2506.9,2506.8,1.21660186]
[1748852583634,22.412,2506.9,2506.8,1.69508186]
[1748852583839,3.68625,2507.0,2506.8,1.69508186]
[1748852584136,3.68625,2507.0,2506.9,3.19080186]
[1748852584437,22.10525,2507.0,2506.9,43.99080186]
[1748852584733,0.47845,2507.0,2506.9,43.99080186]
[1748852584933,18.89745,2507.0,2506.9,43.99080186]
[1748852585532,22.10525,2507.0,2506.9,1.21660186]
[1748852585741,0.47852,2506.6,2506.5,3.902]
[1748852585930,0.47852,2506.6,2506.5,5.11935424]
[1748852586238,0.47852,2506.6,2506.5,45.91935424]
[1748852586538,2.0052,2506.6,2506.5,45.91935424]
[1748852586833,2.48372,2506.6,2506.5,45.91935424]
[1748852587331,2.48372,2506.6,2506.5,40.8]
[1748852588031,2.0052,2506.6,2506.5,40.8]
[1748852588231,24.4162,2506.6,2506.5,40.8]
[1748852588439,24.89472,2506.6,2506.5,42.01780685]
[1748852588829,24.4162,2506.6,2506.5,42.01780685]
[1748852589034,24.89472,2506.6,2506.5,42.01780685]
[1748852590443,24.89472,2506.6,2506.5,40.8]
[1748852590737,24.89472,2506.6,2506.5,42.0192952]
[1748852591840,24.89472,2506.6,2506.5,42.01992896]
[1748852592139,24.89472,2506.6,2506.5,42.0199462]
[1748852593639,24.89472,2506.6,2506.5,1.2199462]
[1748852594136,24.89472,2506.6,2506.5,42.0199462]
[1748852594531,28.10252,2506.6,2506.5,42.0199462]
[1748852595443,24.89472,2506.6,2506.5,42.0199462]
[1748852595645,28.10252,2506.6,2506.5,42.0199462]
[1748852596334,28.10252,2506.6,2506.5,40.8]
[1748852596531,28.10252,2506.6,2506.5,42.02046251]
[1748852597433,24.89472,2506.6,2506.5,42.02046251]
[1748852597646,28.10252,2506.6,2506.5,42.02046251]
[1748852600133,28.10352,2506.6,2506.5,42.02046251]
[1748852601246,28.10352,2506.6,2506.5,42.0911604]
[1748852602543,26.78902,2506.6,2506.5,42.0911604]
[1748852605149,26.78902,2506.6,2506.5,40.87069789]
[1748852605343,26.78902,2506.6,2506.5,42.09096321]
[1748852607544,26.09832,2506.6,2506.5,42.09096321]
[1748852609646,25.6158,2506.6,2506.5,42.09038712]
[1748852609853,26.09432,2506.6,2506.5,42.09038712]
[1748852610045,3.2078,2506.6,2506.5,44.08868712]
[1748852610247,3.2078,2506.6,2506.5,50.6812295]
[1748852610457,21.6278,2506.6,2506.5,50.6812295]
[1748852611950,3.2078,2506.6,2506.5,51.1597695]
[1748852612156,18.419,2506.6,2506.5,49.08868712]
[1748852612353,18.419,2506.6,2506.5,51.47517146]
[1748852612553,18.419,2506.6,2506.5,49.08868712]
[1748852613447,18.89752,2506.6,2506.5,49.08868712]
[1748852614351,18.89752,2506.6,2506.5,46.4753344]
[1748852614555,18.89652,2506.6,2506.5,46.4753344]
[1748852616051,18.418,2506.6,2506.5,46.4753344]
[1748852617354,18.89652,2506.6,2506.5,46.4753344]
[1748852617655,18.418,2506.6,2506.5,46.4753344]
[1748852618351,18.89652,2506.6,2506.5,46.47543524]
[1748852619054,18.89652,2506.6,2506.5,42.09048796]
[1748852619456,20.85942,2506.6,2506.5,42.09048796]
[1748852619658,20.85942,2506.6,2506.5,1.29048796]
[1748852622466,20.85942,2506.6,2506.5,0.07069789]
[1748852622668,20.85942,2506.6,2506.5,1.29082095]
[1748852623864,22.88452,2506.6,2506.5,1.29082095]
[1748852624461,22.88452,2506.6,2506.5,1.96692095]
[1748852625170,4.46652,2506.6,2506.5,1.96692095]
[1748852625354,3.68631,2506.7,2506.5,42.76692095]
[1748852625559,3.68631,2506.7,2506.6,2.50112306]
[1748852625560,7.67431,2506.7,2506.6,2.50112306]
[1748852625866,26.09231,2506.7,2506.6,4.33025136]
[1748852626364,26.09231,2506.7,2506.6,45.13025136]
[1748852626365,3.988,2506.7,2506.6,45.13025136]
[1748852626565,3.988,2506.9,2506.6,43.93622306]
[1748852626764,3.988,2506.9,2506.7,2.91632522]
[1748852626955,3.988,2506.9,2506.8,5.32898356]
[1748852627153,22.406,2506.9,2506.8,5.32898356]
[1748852627667,22.406,2506.9,2506.8,46.12898356]
[1748852628262,22.88446,2506.9,2506.8,46.12898356]
[1748852628461,22.88446,2506.9,2506.8,44.53785834]
[1748852628762,22.88446,2506.9,2506.8,43.21265834]
[1748852629359,23.51886,2506.9,2506.8,43.21265834]
[1748852629767,23.51886,2506.9,2506.8,44.58575834]
[1748852630460,4.46646,2506.9,2506.8,44.58575834]
[1748852630661,22.88246,2506.9,2506.8,44.58575834]
[1748852631264,22.88246,2506.9,2506.8,44.58557862]
[1748852632367,4.46646,2506.9,2506.8,44.58557862]
[1748852632571,22.88246,2506.9,2506.8,44.58557862]
[1748852633563,0.00598444,2507.1,2506.8,44.58557862]
[1748852633760,0.00598444,2507.1,2507.0,1.19315068]
[1748852633970,0.00598444,2507.1,2507.0,3.50395993]
[1748852634166,18.42198444,2507.1,2507.0,7.56863471]
[1748852634470,0.00598444,2507.1,2507.0,5.4494254]
[1748852634770,18.42198444,2507.1,2507.0,5.4494254]
[1748852635565,18.42198444,2507.1,2507.0,5.44786345]
[1748852636070,0.00598444,2507.1,2507.0,10.44786345]
[1748852636268,18.42098444,2507.1,2507.0,10.44786345]
[1748852636577,18.42098444,2507.1,2507.0,5.44786345]
[1748852637171,18.89940444,2507.1,2507.0,5.44786345]
[1748852637368,18.42098444,2507.1,2507.0,5.44786345]
[1748852637762,0.00598444,2507.1,2507.0,3.85877276]
[1748852638571,0.48440444,2507.1,2507.0,3.85877276]
[1748852638963,0.00598444,2507.1,2507.0,3.85877276]
[1748852639168,0.00598444,2507.1,2507.0,7.76077276]
[1748852639874,18.89237,2507.4,2507.0,13.23837673]
[1748852640169,18.414,2507.4,2507.3,1.58764542]
[1748852640379,18.414,2507.4,2507.3,2.80439215]
[1748852640572,18.414,2507.4,2507.3,4.07609215]
[1748852640770,18.414,2507.4,2507.3,44.87609215]
[1748852640969,0.00598444,2507.6,2507.5,0.47835]
[1748852641175,0.00598444,2507.6,2507.5,1.69509673]
[1748852641474,0.00598444,2507.6,2507.5,9.0756006]
[1748852641672,7.1938,2508.1,2507.7,0.47831]
[1748852641870,18.413,2508.0,2507.8,4.41360888]
[1748852642073,18.89125,2508.0,2507.9,1.21674673]
[1748852642478,18.413,2508.0,2507.9,2.52994673]
[1748852642680,18.413,2508.0,2507.9,43.32743198]
[1748852643367,18.412,2508.0,2507.9,43.32743198]
[1748852645078,18.412,2508.0,2507.9,42.01423198]
[1748852646066,18.89025,2508.0,2507.9,42.01423198]
[1748852646277,18.412,2508.0,2507.9,42.01423198]
[1748852646476,18.412,2508.0,2507.9,40.8]
[1748852647078,18.89025,2508.0,2507.9,40.8]
[1748852647481,18.412,2508.0,2507.9,40.8]
[1748852647685,18.89025,2508.0,2507.9,40.8]
[1748852647978,18.412,2508.0,2507.9,40.8]
[1748852648374,20.15565,2508.0,2507.9,40.8]
[1748852648978,23.36345,2508.0,2507.9,40.8]
[1748852649280,18.408,2508.0,2507.9,40.8]
[1748852649484,0.6939,2508.1,2507.9,40.8]
[1748852649777,0.00598444,2508.2,2508.0,1.84095]
[1748852649979,0.00598444,2508.2,2508.1,1.3627]
[1748852650484,18.41298444,2508.2,2508.1,1.3627]
[1748852650987,18.89119444,2508.2,2508.1,1.3627]
[1748852651182,18.41298444,2508.2,2507.9,40.8]
[1748852651382,19.70378444,2508.2,2507.9,40.8]
[1748852651579,1.2908,2508.1,2507.9,40.8]
[1748852651983,0.47825,2508.0,2507.9,40.8]
[1748852652486,0.47825,2508.0,2507.9,42.01145147]
[1748852654579,1.76904,2508.1,2507.9,42.01145147]
[1748852654780,0.00598444,2508.2,2508.0,1.21189916]
[1748852654978,0.00598444,2508.2,2508.1,1.86929916]
[1748852655179,18.41198444,2508.2,2508.1,1.86929916]
[1748852655380,0.00598444,2508.2,2508.1,3.22519916]
[1748852655582,0.6361,2508.9,2508.4,0.47816]
[1748852655879,0.6361,2508.9,2508.1,12.12719916]
[1748852655880,5.2574,2509.1,2508.6,4.39304433]
[1748852656077,3.68583,2509.2,2508.7,45.03114349]
[1748852656285,3.68583,2509.2,2508.8,3.75304349]
[1748852656286,18.405,2509.1,2508.8,3.75304349]
[1748852656478,0.47807,2509.0,2508.9,2.56779916]
[1748852656783,0.47807,2509.0,2508.9,3.22409916]
[1748852656979,3.21378444,2509.2,2508.9,3.22409916]
[1748852657188,18.405,2509.1,2509.0,1.2814]
[1748852657379,18.88304,2509.1,2509.0,1.2814]
[1748852657579,0.47806,2509.0,2508.9,1.21189916]
[1748852657779,0.47808,2508.9,2508.8,3.902]
[1748852657980,0.47807,2509.0,2508.8,6.39262488]
[1748852658191,0.47807,2509.0,2508.9,2.49062488]
[1748852658379,0.47806,2509.0,2508.9,2.49062488]
[1748852659281,18.88004,2509.1,2508.9,2.49062488]
[1748852659487,18.88004,2509.1,2509.0,2.49062488]
[1748852659890,18.88004,2509.1,2509.0,2.48957079]
[1748852660197,0.47804,2509.1,2509.0,2.48957079]
[1748852660691,21.61578444,2509.2,2509.0,2.48957079]
[1748852660692,22.09380444,2509.2,2509.0,2.48957079]
[1748852660887,22.09380444,2509.2,2509.1,3.20187079]
[1748852661182,0.00598444,2509.2,2509.1,3.20187079]
[1748852662189,0.00598444,2509.2,2509.1,3.88537079]
[1748852662389,0.00598444,2509.2,2509.1,5.06756129]
[1748852662588,0.00598444,2509.2,2509.1,3.88537079]
[1748852662785,0.00598444,2509.2,2509.1,44.68537079]
[1748852664089,0.00598444,2509.2,2509.1,43.4772]
[1748852664289,0.48400444,2509.2,2509.1,44.68447386]
[1748852664884,0.00598444,2509.2,2509.1,44.68447386]
[1748852665985,0.48400444,2509.2,2509.1,44.68447386]
[1748852666591,0.00598444,2509.2,2509.1,44.68447386]
[1748852667393,0.00598444,2509.2,2509.1,45.8657597]
[1748852668300,18.40198444,2509.2,2509.1,46.3437997]
[1748852668596,18.40198444,2509.2,2509.1,45.86606315]
[1748852669998,18.88000444,2509.2,2509.1,45.86606315]
[1748852671193,18.40198444,2509.2,2509.1,45.86606315]
[1748852672500,0.00598444,2509.2,2509.1,46.34410315]
[1748852672698,0.00598444,2509.2,2509.1,45.16266422]
[1748852674403,0.07668233,2509.2,2509.1,46.74821376]
[1748852675096,0.55470233,2509.2,2509.1,46.27017376]
[1748852675295,0.07668233,2509.2,2509.1,46.27017376]
[1748852676196,0.55470233,2509.2,2509.1,46.27017376]
[1748852677295,0.55470233,2509.2,2509.1,46.2712607]
[1748852677495,0.48400444,2509.2,2509.1,46.2712607]
[1748852679503,0.48400444,2509.2,2509.1,44.68571116]
[1748852679700,0.00598444,2509.2,2509.1,44.68571116]
[1748852679897,0.48400444,2509.2,2509.1,44.68571116]
[1748852680095,0.48400444,2509.2,2509.1,43.58763957]
[1748852680401,3.16750444,2509.2,2509.1,42.00851116]
[1748852681505,3.23820233,2509.2,2509.1,42.01158665]
[1748852681707,2.10078233,2509.2,2509.1,42.01158665]
[1748852681900,20.96980233,2509.2,2509.1,43.19717686]
[1748852682507,20.89910444,2509.2,2509.1,42.01158665]
[1748852682803,20.89910444,2509.2,2509.1,43.19831989]
[1748852683504,20.89910444,2509.2,2509.1,42.01158665]
[1748852684106,20.89910444,2509.2,2509.1,43.19942679]
[1748852684609,20.89910444,2509.2,2509.1,43.59071506]
[1748852685498,20.89910444,2509.2,2509.1,44.39209052]
[1748852686119,20.89910444,2509.2,2509.1,44.39719571]
[1748852686505,0.68028444,2509.2,2509.1,44.39719571]
[1748852686707,0.00598444,2509.2,2509.1,42.01669184]
[1748852686913,0.00598444,2509.2,2509.1,46.97338224]
[1748852687117,18.39798444,2509.2,2509.1,46.97338224]
[1748852687610,0.00598444,2509.2,2509.1,46.97894442]
[1748852687813,18.39798444,2509.2,2509.1,46.9788439]
[1748852688209,0.00598444,2509.2,2509.1,46.9788439]
[1748852688414,8.38355,2509.9,2509.3,0.478]
[1748852688622,1.2775,2510.2,2509.8,1.58628798]
[1748852688815,3.981,2510.8,2510.3,0.4778]
[1748852689118,0.4777,2510.9,2510.7,1.58522416]
[1748852689310,1.9363,2511.0,2510.8,1.21669184]
[1748852689506,0.47769,2510.9,2510.8,1.21669184]
[1748852689718,18.86869,2510.9,2510.8,43.40949184]
[1748852689908,18.86869,2510.9,2510.8,42.1928]
[1748852690114,18.86869,2510.9,2510.8,43.41035652]
[1748852690314,18.86869,2510.9,2510.8,43.59795194]
[1748852690521,19.55049,2510.9,2510.8,42.01755652]
[1748852690717,25.21769,2510.9,2510.8,1.21755652]
[1748852691525,0.47773,2510.7,2510.6,0.00598444]
[1748852691825,0.47773,2510.7,2510.6,42.02132874]
[1748852692221,1.77913,2510.7,2510.6,42.02132874]
[1748852692417,6.77913,2510.7,2510.6,40.80598444]
[1748852693526,0.47781,2510.3,2510.2,1.18410657]